Workbook

Sheet 产成品2020年 (hidden)
A1: 北京华新凯业物资再生有限公司2020年固体废物管理台账
A2: 物料名称 | B2: 库存单位 | C2: (期初)数量（库存） | D2: (收入)数量（库存） | E2: (发出)数量（库存） | F2: (结存)数量（库存）
A4: 废钢铁 | B4: 吨 | C4: 91.455 | D4: 13826.005 | E4: 13036.36 | F4: 881.1
A5: 废铝 | B5: 吨 | C5: 8.733 | D5: 335.887 | E5: 320.81 | F5: 23.81
A6: 废配件 | B6: 个 | C6: 0 | D6: =69213-32230 -> 36983 | E6: =69213-32230 -> 36983 | F6: 0
A7: 废轮胎 | B7: 个 | C7: 0 | D7: 32230 | E7: 32230 | F7: 0
A8: 废塑料 | B8: 吨 | C8: 9.645 | D8: 245.425 | E8: 235.45 | F8: 19.62
A9: 废铜 | B9: 吨 | C9: 1.35 | D9: 167.84 | E9: 145.26 | F9: 23.93
A10: 废橡胶 | B10: 吨 | C10: 0.93 | D10: 45.67 | E10: 44.71 | F10: 1.89
A11: 杂料库 | B11: 吨 | C11: 2.63 | D11: 174.256 | E11: 165.436 | F11: 11.45

Sheet 2021年度车辆台账
A1: 北京华新凯业物资再生有限公司2021年度报废车辆管理台账
A2: 序号 | B2: 车辆类别 | C2: 单位 | D2: 前期贮存量 | E2: 回收量 | F2: 处置量 | G2: 贮存量
A3: 1 | B3: 货车 | C3: 辆 | D3: =D11+D18+D25+D32 -> 144 | E3: =E11+E18+E25+E32 -> 606 | F3: =F11+F18+F25+F32 -> 578 | G3: =G11+G18+G25+G32 -> 172
A4: 2 | B4: 客车 | C4: 辆 | D4: =D12+D19+D26+D33 -> 3163 | E4: =E12+E19+E26+E33 -> 8787 | F4: =F12+F19+F26+F33 -> 9191 | G4: =G12+G19+G26+G33 -> 2761
A5: 3 | B5: 其他 | C5: 辆 | D5: =D13+D20+D27+D34 -> 374 | E5: =E13+E20+E27+E34 -> 2119 | F5: =F13+F20+F27+F34 -> 2069 | G5: =G13+G20+G27+G34 -> 423
B6: 总计 | C6: 辆 | D6: =D14+D21+D28+D35 -> 3681 | E6: =E14+E21+E28+E35 -> 11512 | F6: =F14+F21+F28+F35 -> 11838 | G6: =G14+G21+G28+G35 -> 3356
A9: 北京华新凯业物资再生有限公司2021年1季度报废车辆管理台账
A10: 序号 | B10: 车辆类别 | C10: 单位 | D10: 前期贮存量 | E10: 回收量 | F10: 处置量 | G10: 贮存量
A11: 1 | B11: 货车 | C11: 辆 | D11: 16 | E11: 200 | F11: 166 | G11: 50
A12: 2 | B12: 客车 | C12: 辆 | D12: 1012 | E12: 2034 | F12: 2274 | G12: 772
A13: 3 | B13: 其他 | C13: 辆 | D13: 12 | E13: 421 | F13: 190 | G13: 243
B14: 总计 | C14: 辆 | D14: 1040 | E14: 2655 | F14: 2630 | G14: 1065
A16: 北京华新凯业物资再生有限公司2021年2季度报废车辆管理台账
A17: 序号 | B17: 车辆类别 | C17: 单位 | D17: 前期贮存量 | E17: 回收量 | F17: 处置量 | G17: 贮存量
A18: 1 | B18: 货车 | C18: 辆 | D18: 50 | E18: 149 | F18: 186 | G18: 13
A19: 2 | B19: 客车 | C19: 辆 | D19: 772 | E19: 3387 | F19: 3328 | G19: 832
A20: 3 | B20: 其他 | C20: 辆 | D20: 243 | E20: 606 | F20: 843 | G20: 6
B21: 总计 | C21: 辆 | D21: =SUM(D18:D20) -> 1065 | E21: 4142 | F21: 4357 | G21: 851
A23: 北京华新凯业物资再生有限公司2021年3季度报废车辆管理台账
A24: 序号 | B24: 车辆类别 | C24: 单位 | D24: 前期贮存量 | E24: 回收量 | F24: 处置量 | G24: 贮存量
A25: 1 | B25: 货车 | C25: 辆 | D25: 13 | E25: 150 | F25: 98 | G25: 65
A26: 2 | B26: 客车 | C26: 辆 | D26: 831 | E26: 2073 | F26: 2358 | G26: 547
A27: 3 | B27: 其他 | C27: 辆 | D27: 7 | E27: 581 | F27: 476 | G27: 111
B28: 总计 | C28: 辆 | D28: =SUM(D25:D27) -> 851 | E28: 2804 | F28: 2932 | G28: 723
A30: 北京华新凯业物资再生有限公司2021年4季度报废车辆管理台账
A31: 序号 | B31: 车辆类别 | C31: 单位 | D31: 前期贮存量 | E31: 回收量 | F31: 处置量 | G31: 贮存量
A32: 1 | B32: 货车 | C32: 辆 | D32: 65 | E32: 107 | F32: 128 | G32: 44
A33: 2 | B33: 客车 | C33: 辆 | D33: 548 | E33: 1293 | F33: 1231 | G33: 610
A34: 3 | B34: 其他 | C34: 辆 | D34: 112 | E34: 511 | F34: 560 | G34: 63
B35: 总计 | C35: 辆 | D35: =SUM(D32:D34) -> 725 | E35: 1911 | F35: 1919 | G35: 717

Sheet 车辆类别 (hidden)
A1: 2020年车辆收发存
A2: 物料名称 | B2: (期初结存)数量 | C2: (本期收入)数量 | D2: (本期发出)数量 | E2: (期末结存)数量 | F2: 车辆类别
A3: 半挂牵引车 | C3: 2 | D3: 2 | F3: 其他
A4: 大型非载货专项作业车 | C4: 2 | D4: 2 | F4: 其他
A5: 大型载货专项作业车 | B5: 2 | C5: 1 | D5: 3 | F5: 货车
A6: 大型载客车 | C6: 324 | D6: 319 | E6: 5 | F6: 客车
A7: 低速货车（原四轮农用运输车） | C7: 58 | D7: 56 | E7: 2 | F7: 其他
A8: 电动两轮 | C8: 35 | D8: 35 | F8: 其他
A9: 电动两轮摩托车 | C9: 37 | D9: 37 | F9: 其他
A10: 电动普通摩托车 | F10: 其他
A11: 电动三轮 | C11: 269 | D11: 269 | F11: 其他
A12: 电动三轮摩托车 | C12: 352 | D12: 352 | F12: 其他
A13: 电动四轮摩托车 | C13: 4 | D13: 4 | F13: 其他
A14: 工程车 | C14: 1 | D14: 1 | F14: 其他
A15: 轿车 | B15: 25 | C15: 453 | D15: 437 | E15: 41 | F15: 客车
A16: 轿车(微型载客车) | B16: 2 | C16: 83 | D16: 80 | E16: 5 | F16: 客车
A17: 轿车(小型载客车) | B17: 173 | C17: 6364 | D17: 5794 | E17: 743 | F17: 客车
A18: 轮式专用机械车 | C18: 2 | D18: 2 | F18: 其他
A19: 轮式装载机械 | C19: 11 | D19: 10 | E19: 1 | F19: 其他
A20: 普通两轮摩托车 | C20: 5625 | D20: 5625 | F20: 其他
A21: 普通摩托车 | C21: 675 | D21: 673 | E21: 2 | F21: 其他
A22: 普通三轮摩托车 | C22: 798 | D22: 798 | F22: 其他
A23: 轻便摩托车 | C23: 71 | D23: 70 | E23: 1 | F23: 其他
A24: 轻型非载货专项作业车 | B24: 3 | C24: 9 | D24: 12 | F24: 其他
A25: 轻型栏板货车 | C25: 18 | D25: 18 | F25: 货车
A26: 轻型特殊结构货车 | C26: 1 | D26: 1 | F26: 货车
A27: 轻型厢式货车 | C27: 9 | D27: 8 | E27: 1 | F27: 货车
A28: 轻型箱式货车 | C28: 18 | D28: 18 | F28: 货车
A29: 轻型载货车 | B29: 8 | C29: 455 | D29: 454 | E29: 9 | F29: 货车
A30: 轻型载货专项作业车 | C30: 25 | D30: 25 | F30: 货车
A31: 轻型载客车 | F31: 客车
A32: 轻型专项作业车 | C32: 4 | D32: 2 | E32: 2 | F32: 其他
A33: 人力三轮车 | C33: 3 | D33: 3 | F33: 其他
A34: 三轮车 | C34: 1 | D34: 1 | F34: 其他
A35: 三轮摩托车 | C35: 12 | D35: 11 | E35: 1 | F35: 其他
A36: 三轮汽车（原三轮农用运输车） | C36: 47 | D36: 46 | E36: 1 | F36: 其他
A37: 四轮电动 | C37: 11 | D37: 11 | F37: 其他
A38: 四轮摩托车 | C38: 1 | D38: 1 | F38: 其他
A39: 微型载货车 | C39: 19 | D39: 19 | F39: 货车
A40: 微型载客车 | B40: 2 | C40: 49 | D40: 50 | E40: 1 | F40: 客车
A41: 无轨电车 | C41: 66 | D41: 66 | F41: 其他
A42: 小型非载货专项作业车 | B42: 1 | C42: 33 | D42: 33 | E42: 1 | F42: 货车
A43: 小型载货专项作业车 | C43: 1 | D43: 1 | F43: 货车
A44: 小型载客车 | B44: 100 | C44: 1875 | D44: 1770 | E44: 205 | F44: 客车
A45: 正三轮载货摩托车 | C45: 20 | D45: 20 | F45: 其他
A46: 中型半挂牵引车 | C46: 2 | D46: 2 | F46: 其他
A47: 中型非载货专项作业车 | B47: 1 | C47: 47 | D47: 48 | F47: 其他
A48: 中型特殊结构货车 | C48: 4 | D48: 4 | F48: 货车
A49: 中型载货车 | C49: 129 | D49: 125 | E49: 4 | F49: 货车
A50: 中型载货专项作业车 | B50: 2 | C50: 59 | D50: 60 | E50: 1 | F50: 货车
A51: 中型载客车 | B51: 6 | C51: 342 | D51: 336 | E51: 12 | F51: 客车
A52: 中型专项作业车 | C52: 1 | D52: 1 | F52: 其他
A53: 重型半挂牵引车 | B53: 1 | C53: 20 | D53: 20 | E53: 1 | F53: 其他
A54: 重型非载货专项作业车 | B54: 1 | C54: 15 | D54: 16 | F54: 其他
A55: 重型挂车 | C55: 19 | D55: 19 | F55: 其他
A56: 重型罐式半挂车 | C56: 8 | D56: 8 | F56: 其他
A57: 重型特殊结构货车 | C57: 8 | D57: 8 | F57: 货车
A58: 重型载货车 | B58: 2 | C58: 121 | D58: 123 | F58: 货车
A59: 重型载货专项作业车 | C59: 53 | D59: 52 | E59: 1 | F59: 其他
A60: 重型专项作业车 | C60: 2 | D60: 2 | F60: 其他
A62: 总计 | B62: 329 | C62: 18674 | D62: 17963 | E62: 1040

Sheet 2021年度固体废物管理台账
A1: 北京华新凯业物资再生有限公司2021年度固体废物管理台账
A2: 序号 | B2: 物料名称 | C2: 库存单位 | D2: 前期贮存量 | E2: 产生量 | F2: 处理量 | G2: 流向 | H2: 贮存量 | I2: 属性
A3: 1 | B3: 锂电池库 | C3: 吨 | D3: =D20+D36+D52+D68 -> 6.8 | E3: =E20+E36+E52+E68 -> 28.79 | F3: =F20+F36+F52+F68 -> 31.67 | G3: 委托外单位利用 | H3: =H20+H36+H52+H68 -> 3.92
A4: 2 | B4: 钢铁库 | C4: 吨 | D4: =D21+D37+D53+D69 -> 1970.37 | E4: =E21+E37+E53+E69 -> 16279.04 | F4: 16587.05 | G4: 委托外单位利用 | H4: =H21+H37+H53+H69 -> 1662.36
A5: 3 | B5: 铝库 | C5: 吨 | D5: 176.28 | E5: 610.26 | F5: 501.43 | G5: 委托外单位利用 | H5: 285.11
A6: 4 | B6: 配件库 | C6: 个 | D6: 4190 | E6: 48970 | F6: 48751 | G6: 委托外单位利用 | H6: 4409
A7: 5 | B7: 废轮胎 | C7: 个 | D7: 219 | E7: 35487 | F7: 35706 | G7: 委托外单位利用 | H7: 0
A8: 6 | B8: 塑料库 | C8: 吨 | D8: 101.65 | E8: 349.08 | F8: 340.81 | G8: 委托外单位利用 | H8: 109.92
A9: 7 | B9: 铜库 | C9: 吨 | D9: 62.89 | E9: 244.81 | F9: 217.66 | G9: 委托外单位利用 | H9: 90.04
A10: 8 | B10: 橡胶库 | C10: 吨 | D10: 20.37 | E10: 48.94 | F10: 47.6 | G10: 委托外单位利用 | H10: 21.71
A11: 9 | B11: 杂料库 | C11: 吨 | D11: 44.01 | E11: 318.38 | F11: 319.1 | G11: 委托外单位利用 | H11: 43.29
A12: 10 | B12: 电池 | C12: 吨 | D12: 21.6 | E12: 192.6 | F12: 183.54 | G12: 委托单位利用 | H12: 31.34 | I12: 危废
A13: 11 | B13: 机油 | C13: 吨 | D13: 10.88 | E13: 44.42 | F13: 46.92 | G13: 委托外单位处置 | H13: 8.38 | I13: 危废
A14: 12 | B14: 三元 | C14: 吨 | D14: 8.883 | E14: 13.61 | F14: 10.69 | G14: 委托单位利用 | H14: 11.71 | I14: 危废
A15: 13 | B15: 其他危废 | C15: 吨 | D15: 9.58 | E15: 21.455 | F15: 20.87 | G15: 委托外单位处置 | H15: 10.14 | I15: 危废
A18: 北京华新凯业物资再生有限公司2021年1季度固体废物管理台账
A19: 序号 | B19: 物料名称 | C19: 库存单位 | D19: 前期贮存量 | E19: 产生量 | F19: 处理量 | G19: 流向 | H19: 贮存量 | I19: 属性
A20: 1 | B20: 锂电池库 | C20: 吨 | D20: 0 | E20: 15.75 | F20: 15.75 | G20: 委托外单位利用 | H20: 0
A21: 2 | B21: 钢铁库 | C21: 吨 | D21: 881.1 | E21: 3388.17 | F21: 4028.66 | G21: 委托外单位利用 | H21: 240.61
A22: 3 | B22: 铝库 | C22: 吨 | D22: 23.81 | E22: 107.63 | F22: 103.2 | G22: 委托外单位利用 | H22: 28.24
A23: 4 | B23: 配件库 | C23: 个 | D23: 0 | E23: =17024-11706 -> 5318 | F23: =17024-11706 -> 5318 | G23: 委托外单位利用 | H23: 0
A24: 5 | B24: 废轮胎 | C24: 个 | D24: 0 | E24: 11706 | F24: 11706 | G24: 委托外单位利用 | H24: 0
A25: 6 | B25: 塑料库 | C25: 吨 | D25: 19.62 | E25: 100.4 | F25: 101.93 | G25: 委托外单位利用 | H25: 18.09
A26: 7 | B26: 铜库 | C26: 吨 | D26: 23.93 | E26: 39.06 | F26: 53.26 | G26: 委托外单位利用 | H26: 9.73
A27: 8 | B27: 橡胶库 | C27: 吨 | D27: 1.89 | E27: 8.6 | F27: 9.05 | G27: 委托外单位利用 | H27: 1.44
A28: 9 | B28: 杂料库 | C28: 吨 | D28: 11.45 | E28: 46.95 | F28: 48.33 | G28: 委托外单位利用 | H28: 10.07
A29: 10 | B29: 电池 | C29: 吨 | D29: 0 | E29: 33.19 | F29: 33.19 | G29: 委托单位利用 | H29: 0 | I29: 危废
A30: 11 | B30: 机油 | C30: 吨 | D30: 0 | E30: 7.92 | F30: 7.92 | G30: 委托外单位处置 | H30: 0 | I30: 危废
A31: 12 | B31: 三元 | C31: 吨 | D31: 0.093 | E31: 1.12 | F31: 0 | G31: 委托单位利用 | H31: 1.12 | I31: 危废
A32: 13 | B32: 其他危废 | C32: 吨 | D32: 0 | E32: 0.025 | F32: 0 | G32: 委托外单位处置 | H32: 0 | I32: 危废
A34: 北京华新凯业物资再生有限公司2021年2季度固体废物管理台账
A35: 序号 | B35: 物料名称 | C35: 库存单位 | D35: 前期贮存量 | E35: 产生量 | F35: 处理量 | G35: 流向 | H35: 贮存量 | I35: 属性
A36: 1 | B36: 废锂电池 | C36: 吨 | D36: 0 | E36: 10.1 | F36: 10.1 | G36: 委托外单位利用 | H36: 0
A37: 2 | B37: 废钢铁 | C37: 吨 | D37: 240.61 | E37: 4587.23 | F37: 4527.37 | G37: 委托外单位利用 | H37: 300.47
A38: 3 | B38: 废铝 | C38: 吨 | D38: 28.24 | E38: 151.08 | F38: 146.23 | G38: 委托外单位利用 | H38: 33.09
A39: 4 | B39: 废配件 | C39: 个 | D39: 0 | E39: 32258 | F39: 27849 | G39: 委托外单位利用 | H39: 4409
A40: 5 | B40: 废轮胎 | C40: 个 | D40: 0 | E40: 11255 | F40: 11255 | G40: 委托外单位利用 | H40: 0 | I40: 116吨
A41: 6 | B41: 废塑料 | C41: 吨 | D41: 18.09 | E41: 130.36 | F41: 138.5 | G41: 委托外单位利用 | H41: 9.95
A42: 7 | B42: 废铜 | C42: 吨 | D42: 9.73 | E42: 67.59 | F42: 69.83 | G42: 委托外单位利用 | H42: 7.49
A43: 8 | B43: 废橡胶 | C43: 吨 | D43: 1.44 | E43: 19.06 | F43: 12.93 | G43: 委托外单位利用 | H43: 7.57
A44: 9 | B44: 废杂料 | C44: 吨 | D44: 10.07 | E44: 91.25 | F44: 98.14 | G44: 委托外单位利用 | H44: 3.18
A45: 10 | B45: 废铅酸蓄电池 | C45: 吨 | D45: 4.6 | E45: 61.57 | F45: 66.17 | G45: 委托单位利用 | H45: 0 | I45: 危废
A46: 11 | B46: 废机油 | C46: 吨 | D46: 4.88 | E46: 8.5 | F46: 12.38 | G46: 委托外单位处置 | H46: 1 | I46: 危废
A47: 12 | B47: 废三元 | C47: 吨 | D47: 1.1 | E47: 5.3 | F47: 0 | G47: 委托单位利用 | H47: 6.4 | I47: 危废
A48: 13 | B48: 其他危废 | C48: 吨 | D48: 2.58 | E48: 2.6 | F48: 2.83 | G48: 委托外单位处置 | H48: 2.35 | I48: 危废
A50: 北京华新凯业物资再生有限公司2021年3季度固体废物管理台账
A51: 序号 | B51: 物料名称 | C51: 库存单位 | D51: 前期贮存量 | E51: 产生量 | F51: 处理量 | G51: 流向 | H51: 贮存量 | I51: 属性
A52: 1 | B52: 废锂电池 | C52: 吨 | D52: 4.8 | E52: 1.02 | F52: 5.82 | G52: 委托外单位利用 | H52: 0
A53: 2 | B53: 废钢铁 | C53: 吨 | D53: 300.47 | E53: 5534.17 | F53: 5286.45 | G53: 委托外单位利用 | H53: 548.19
A54: 3 | B54: 废铝 | C54: 吨 | D54: 33.09 | E54: 263.83 | F54: 205.78 | G54: 委托外单位利用 | H54: 91.14
A55: 4 | B55: 废配件 | C55: 个 | D55: 4190 | E55: 7441 | F55: 11631 | G55: 委托外单位利用
A56: 5 | B56: 废轮胎 | C56: 个 | D56: 219 | E56: 8637 | F56: 8856 | G56: 委托外单位利用
A57: 6 | B57: 废塑料 | C57: 吨 | D57: 9.95 | E57: 62.51 | F57: 18.47 | G57: 委托外单位利用 | H57: 53.99
A58: 7 | B58: 废铜 | C58: 吨 | D58: 7.49 | E58: 88.94 | F58: 74.69 | G58: 委托外单位利用 | H58: 21.74
A59: 8 | B59: 废橡胶 | C59: 吨 | D59: 7.57 | E59: 14.26 | F59: 12.36 | G59: 委托外单位利用 | H59: 9.47
A60: 9 | B60: 废杂料 | C60: 吨 | D60: 3.18 | E60: 75.43 | F60: 59.3 | G60: 委托外单位利用 | H60: 19.31
A61: 10 | B61: 废铅酸蓄电池 | C61: 吨 | D61: 15 | E61: 45.84 | F61: 32.84 | G61: 委托外单位利用 | H61: 28 | I61: 危废
A62: 11 | B62: 废机油 | C62: 吨 | D62: 3 | E62: 11 | F62: 9.83 | G62: 委托外单位处置 | H62: 4.17 | I62: 危废
A63: 12 | B63: 废三元 | C63: 吨 | D63: 7.69 | E63: 4 | F63: 10.69 | G63: 委托外单位利用 | H63: 1 | I63: 危废
A64: 13 | B64: 其他危废 | C64: 吨 | D64: 5 | E64: 8.83 | F64: 10.83 | G64: 委托外单位处置 | H64: 3 | I64: 危废
A66: 北京华新凯业物资再生有限公司2021年4季度固体废物管理台账
A67: 序号 | B67: 物料名称 | C67: 库存单位 | D67: 前期贮存量 | E67: 产生量 | F67: 处理量 | G67: 流向 | H67: 贮存量 | I67: 属性
A68: 1 | B68: 废锂电池 | C68: 吨 | D68: 2 | E68: 1.92 | F68: 0 | G68: 委托外单位利用 | H68: 3.92
A69: 2 | B69: 废钢铁 | C69: 吨 | D69: 548.19 | E69: 2769.47 | F69: 2744.57 | G69: 委托外单位利用 | H69: 573.09
A70: 3 | B70: 废铝 | C70: 吨 | D70: 91.14 | E70: 87.72 | F70: 46.22 | G70: 委托外单位利用 | H70: 132.64
A71: 4 | B71: 废配件 | C71: 个 | D71: 0 | E71: =7842-3889 -> 3953 | F71: =7842-3889 -> 3953 | G71: 委托外单位利用
A72: 5 | B72: 废轮胎 | C72: 个 | D72: 0 | E72: 3889 | F72: 3889 | G72: 委托外单位利用
A73: 6 | B73: 废塑料 | C73: 吨 | D73: 53.99 | E73: 55.81 | F73: 81.91 | G73: 委托外单位利用 | H73: 27.89
A74: 7 | B74: 废铜 | C74: 吨 | D74: 21.74 | E74: 49.22 | F74: 19.88 | G74: 委托外单位利用 | H74: 51.08
A75: 8 | B75: 废橡胶 | C75: 吨 | D75: 9.47 | E75: 7.02 | F75: 13.26 | G75: 委托外单位利用 | H75: 3.23
A76: 9 | B76: 废杂料 | C76: 吨 | D76: 19.31 | E76: 104.75 | F76: 113.33 | G76: 委托外单位利用 | H76: 10.73
A77: 10 | B77: 废铅酸蓄电池 | C77: 吨 | D77: 2 | E77: 52 | F77: 51.34 | G77: 委托外单位利用 | H77: 3.34 | I77: 危废
A78: 11 | B78: 废机油 | C78: 吨 | D78: 3 | E78: 17 | F78: 16.79 | G78: 委托外单位处置 | H78: 3.21 | I78: 危废
A79: 12 | B79: 废三元 | C79: 吨 | D79: 0 | E79: 3.19 | F79: 0 | G79: 委托外单位利用 | H79: 3.19 | I79: 危废
A80: 13 | B80: 其他危废 | C80: 吨 | D80: 2 | E80: 10 | F80: 7.21 | G80: 委托外单位处置 | H80: 4.79 | I80: 危废
